bitfinex/quotes_SOLUSD_20240716
["timestamp","ask_amount","ask_price","bid_price","bid_amount"]
[1721140017754,0.34,156.23,156.2,28.5156]
[1721140018548,0.17,156.23,156.2,28.5156]
[1721140018768,6.7404,156.24,156.2,28.5156]
[1721140019357,0.34,156.24,156.21,6.4014]
[1721140019663,0.17,156.24,156.2,22.1136]
[1721140019866,6.4004,156.24,156.2,28.5156]
[1721140020260,6.5701,156.25,156.21,6.4016]
[1721140020974,6.401,156.23,156.2,6.109]
[1721140021358,0.17,156.25,156.2,12.5109]
[1721140021553,6.5701,156.25,156.2,12.5109]
[1721140021854,6.3996,156.26,156.22,6.4012]
[1721140022072,6.399,156.28,156.24,6.4003]
[1721140022276,6.3992,156.27,156.23,22.4024]
[1721140022480,15.9944,156.31,156.23,16.0017]
[1721140022671,6.3996,156.26,156.23,16.0017]
[1721140022973,15.9944,156.31,156.23,22.4024]
[1721140023351,0.17,156.3,156.23,22.4024]
[1721140023561,0.34,156.3,156.23,22.4024]
[1721140023773,15.9944,156.31,156.23,16.0017]
[1721140023979,6.3997,156.26,156.22,6.4009]
[1721140024280,22.2782,156.34,156.23,45.0]
[1721140024482,6.3986,156.29,156.25,6.3998]
[1721140024666,6.3988,156.28,156.24,22.4008]
[1721140025280,6.3988,156.28,156.21,35.3247]
[1721140025281,6.3992,156.27,156.21,32.0579]
[1721140025462,6.3996,156.26,156.22,6.4008]
[1721140025657,0.34,156.28,156.21,32.0579]
[1721140025862,6.3995,156.27,156.21,32.0579]
[1721140026064,6.3995,156.27,156.23,6.4004]
[1721140026376,6.7388,156.28,156.24,6.94354646]
[1721140026758,6.3995,156.27,156.23,16.0017]
[1721140027173,6.3995,156.27,156.23,22.4024]
[1721140027365,6.7389,156.28,156.23,22.4024]
[1721140027565,6.3992,156.27,156.23,22.4024]
[1721140027791,0.34,156.28,156.25,6.3997]
[1721140028084,6.7388,156.28,156.24,6.4003]
[1721140028381,0.34,156.28,156.24,6.4003]
[1721140028681,15.9931,156.32,156.23,16.0017]
[1721140028884,15.9931,156.32,156.24,45.0]
[1721140029465,6.3989,156.28,156.24,6.4]
[1721140029784,6.3985,156.29,156.24,6.4]
[1721140030162,6.3989,156.28,156.23,22.4023]
[1721140030667,6.3989,156.28,156.24,6.4003]
[1721140031864,10.8428563,156.35,156.21,35.3247]
[1721140032074,6.3983,156.29,156.25,6.3996]
[1721140032282,6.3983,156.29,156.23,16.0017]
[1721140032488,6.3983,156.29,156.24,45.0]
[1721140032662,6.3987,156.28,156.23,16.0017]
[1721140033201,6.5693,156.27,156.23,22.4023]
[1721140034060,6.5697,156.26,156.22,6.4009]
[1721140034266,0.17,156.26,156.23,6.4008]
[1721140034461,0.17,156.25,156.23,0.67527675]
[1721140034779,0.17,156.26,156.23,6.4006]
[1721140035084,6.3991,156.28,156.23,6.4006]
[1721140035276,0.34,156.27,156.23,6.4006]
[1721140035678,6.398,156.3,156.24,16.0005]
[1721140035892,7.3616563,156.35,156.24,45.0]
[1721140036057,6.3971,156.32,156.26,15.9986]
[1721140036384,6.3971,156.32,156.27,1.27899701]
[1721140036585,6.3975,156.31,156.27,6.3991]
[1721140036770,6.3982,156.3,156.26,22.398]
[1721140037083,6.3982,156.3,156.26,22.3981]
[1721140037288,6.3974,156.32,156.27,6.3989]
[1721140037464,0.34,156.31,156.26,22.3981]
[1721140037865,0.34,156.31,156.26,15.9986]
[1721140038064,6.3983,156.29,156.26,15.9986]
[1721140038387,6.398,156.3,156.26,15.9986]
[1721140038568,0.34,156.29,156.26,15.9986]
[1721140038764,0.34,156.29,156.16,19.27]
[1721140038966,6.4019,156.21,156.17,31.7344]
[1721140039282,6.4019,156.21,156.17,16.0075]
[1721140039481,6.4034,156.17,156.13,22.1438]
[1721140039677,6.4034,156.17,156.13,15.7269]
[1721140039886,6.4029,156.18,156.14,6.4043]
[1721140040084,6.4025,156.19,156.14,6.4043]
[1721140040291,6.7429,156.18,156.14,6.4043]
[1721140040479,6.5729,156.18,156.14,6.4043]
[1721140040681,0.17,156.18,156.14,6.4043]
[1721140040984,0.34,156.18,156.14,6.4043]
[1721140041191,0.34,156.18,156.13,31.7387]
[1721140041192,0.34,156.18,156.15,6.404]
[1721140041372,6.7428,156.18,156.14,6.4044]
[1721140041687,0.34,156.18,156.1,16.0149]
[1721140041893,0.34,156.18,156.11,20.0]
[1721140042098,6.4037,156.16,156.12,16.0123]
[1721140042573,6.4037,156.16,156.12,22.4175]
[1721140042991,6.4033,156.17,156.12,22.4175]
[1721140043289,0.34,156.16,156.13,6.4048]
[1721140043589,0.17,156.16,156.09,22.3543]
[1721140043887,6.4054,156.12,156.07,6.407]
[1721140044085,6.745,156.13,156.08,6.4069]
[1721140044278,6.575,156.13,156.08,6.4069]
[1721140044479,0.17,156.12,156.08,6.4069]
[1721140044675,6.5753,156.12,156.08,6.4069]
[1721140044882,6.5753,156.12,156.06,16.0193]
[1721140044883,6.4062,156.1,156.06,16.0193]
[1721140045393,6.7466,156.09,156.05,6.408]
[1721140045571,0.17,156.09,156.05,6.408]
[1721140045770,0.34,156.09,156.05,6.408]
[1721140047196,0.34,156.09,156.07,6.4073]
[1721140048389,6.4051,156.13,156.07,16.0176]
[1721140048586,6.4051,156.13,156.08,6.4068]
[1721140048796,6.4053,156.12,156.08,6.4068]
[1721140048981,6.4053,156.12,156.07,22.4248]
[1721140049174,6.4047,156.14,156.09,6.4065]
[1721140049369,6.4053,156.12,156.08,6.4069]
[1721140049570,6.4053,156.12,156.07,22.4248]
[1721140049779,6.745,156.13,156.08,6.4067]
[1721140050082,6.745,156.13,156.08,6.4068]
[1721140050881,0.34,156.13,156.1,6.4061]
[1721140051087,6.745,156.13,156.09,6.4065]
[1721140051295,0.34,156.13,156.08,6.4069]
[1721140051593,6.4053,156.12,156.07,22.4249]
[1721140051790,6.4053,156.12,156.08,6.4069]
[1721140052373,6.4053,156.12,156.07,16.0176]
[1721140052874,6.4053,156.12,156.07,22.4248]
[1721140053088,0.34,156.13,156.05,6.4077]
[1721140053291,6.4065,156.1,156.06,6.4076]
[1721140053991,0.34,156.11,156.07,16.0184]
[1721140054293,6.4054,156.12,156.07,22.4254]
[1721140054471,6.7458,156.11,156.07,16.0184]
[1721140055077,0.34,156.11,156.08,6.4069]
[1721140055287,6.405,156.13,156.07,16.0184]
[1721140055486,0.34,156.12,156.08,6.4069]
[1721140055901,0.34,156.12,156.07,16.0184]
[1721140056098,6.7454,156.12,156.08,6.4067]
[1721140056400,0.34,156.12,156.08,6.4067]
[1721140056597,0.34,156.12,156.07,16.0184]
[1721140057193,6.4058,156.11,156.07,22.4257]
[1721140057376,0.34,156.1,156.07,22.4257]
[1721140057578,6.7461,156.1,156.06,6.4077]
[1721140057890,0.34,156.1,156.04,16.0208]
[1721140058225,6.4072,156.08,156.04,16.0208]
[1721140058393,0.34,156.07,156.04,16.0208]
[1721140058592,6.4078,156.06,156.02,6.4093]
[1721140059201,6.7474,156.07,156.03,6.4089]
[1721140060604,0.34,156.07,156.03,6.4089]
[1721140060797,0.34,156.07,156.04,6.4085]
[1721140061189,0.34,156.07,156.05,6.408]
[1721140061383,0.17,156.06,156.05,6.408]
[1721140061884,0.17,156.07,156.05,6.408]
[1721140062087,6.747,156.08,156.04,6.4084]
[1721140062583,0.34,156.08,156.04,6.4084]
[1721140062795,6.7471,156.08,156.04,6.4084]
[1721140063005,6.7471,156.08,156.03,22.4311]
[1721140063378,6.747,156.08,156.03,22.4311]
[1721140063887,45.0,156.07,156.0,6.4102]
[1721140064193,6.7478,156.06,156.01,16.024]
[1721140064398,6.7478,156.06,156.02,6.4094]
[1721140064599,6.4082,156.05,156.01,16.024]
[1721140064802,0.34,156.04,156.01,16.024]
[1721140064999,6.7478,156.06,156.01,16.024]
[1721140065000,6.7478,156.06,156.02,6.4091]
[1721140065295,6.7478,156.06,156.03,0.50804127]
[1721140065503,0.17,156.06,156.03,16.52974127]
[1721140065716,6.4066,156.09,156.05,6.4082]
[1721140066015,0.34,156.08,156.06,0.60281114]
[1721140066187,6.4076,156.07,156.03,16.0217]
[1721140066596,6.4076,156.07,156.04,1.28145568]
[1721140067305,6.4076,156.07,156.05,1.28145384]
[1721140067493,6.4076,156.07,156.03,22.4306]
[1721140067686,6.4078,156.06,156.0,16.025]
[1721140067884,6.4078,156.06,156.01,6.4095]
[1721140068113,6.4078,156.06,156.02,6.4093]
[1721140068608,6.4075,156.07,156.02,6.4093]
[1721140068784,6.4075,156.07,156.03,6.409]
[1721140068980,6.4085,156.05,156.0,22.4351]
[1721140069196,6.4089,156.04,156.0,16.025]
[1721140069399,6.4097,156.02,155.97,28.6471]
[1721140069592,6.7501,156.01,155.97,22.4393]
[1721140069800,0.17,156.01,155.95,6.412]
[1721140070005,6.4105,156.0,155.96,6.4117]
[1721140070597,6.7499,156.01,155.96,6.4117]
[1721140071005,6.4104,156.0,155.95,6.4122]
[1721140071205,0.34,155.99,155.96,6.4118]
[1721140071409,0.17,155.98,155.96,6.4118]
[1721140071593,6.7501,156.01,155.96,6.4118]
[1721140071801,6.4102,156.0,155.95,6.4122]
[1721140071998,6.7509,155.99,155.94,16.0316]
[1721140072206,0.17,155.99,155.95,6.4119]
[1721140072509,0.34,155.99,155.97,6.4114]
[1721140072706,0.17,155.99,155.97,6.4114]
[1721140073293,0.34,156.0,155.97,6.4114]
[1721140073910,0.34,156.0,155.96,22.4409]
[1721140074805,6.7503,156.0,155.96,22.4409]
[1721140075011,6.7503,156.0,155.96,16.0292]
[1721140075395,0.34,156.0,155.93,16.0323]
[1721140075696,6.4114,155.97,155.93,22.4451]
[1721140076015,6.4114,155.97,155.93,16.0323]
[1721140076308,6.412,155.96,155.92,6.4134]
[1721140076518,0.17,155.98,155.91,6.4138]
[1721140076519,6.5823,155.95,155.91,6.4138]
[1721140076824,6.4123,155.95,155.91,6.4138]
[1721140077194,6.4131,155.93,155.9,16.0352]
[1721140077408,6.7528,155.94,155.9,16.0352]
[1721140077608,0.17,155.93,155.9,16.0352]
[1721140078000,6.5831,155.93,155.9,16.0352]
[1721140078207,0.17,155.93,155.9,16.0352]
[1721140078909,6.5832,155.93,155.89,6.4146]
[1721140079109,0.17,155.92,155.89,6.4146]
[1721140079416,45.17,155.92,155.87,16.0386]
[1721140079608,6.5842,155.91,155.87,16.0386]
[1721140079791,0.17,155.9,155.87,16.0386]
[1721140080114,6.5843,155.9,155.86,6.4159]
[1721140080321,6.5843,155.9,155.87,6.4155]
[1721140080322,0.17,155.89,155.87,6.4155]
[1721140080620,0.17,155.9,155.87,6.4155]
[1721140081021,0.34,155.91,155.88,6.4151]
[1721140081213,0.34,155.91,155.86,16.0394]
[1721140081413,0.34,155.91,155.86,22.455]
[1721140081599,0.34,155.91,155.87,1.28283558]
[1721140081808,6.7542,155.91,155.87,1.28283558]
[1721140082039,0.34,155.91,155.87,6.4155]
[1721140082720,0.34,155.91,155.86,22.4553]
[1721140082904,51.7539,155.91,155.86,22.4553]
[1721140083107,0.34,155.91,155.87,6.4152]
[1721140083318,0.34,155.91,155.86,22.4553]
[1721140083622,6.7542,155.91,155.87,1.28284302]
[1721140083825,6.4143,155.9,155.87,1.28284302]
[1721140084008,0.34,155.89,155.87,1.28284302]
[1721140084212,6.5849,155.89,155.84,6.4743]
[1721140084410,6.5849,155.89,155.84,6.4167]
[1721140084606,6.5849,155.89,155.85,6.4163]
[1721140084926,0.17,155.89,155.85,6.4163]
[1721140085221,0.17,155.91,155.88,6.4151]
[1721140085397,0.17,155.91,155.87,6.4154]
[1721140085398,6.584,155.91,155.87,6.4154]
[1721140085595,6.5845,155.9,155.86,6.4159]
[1721140085827,6.5847,155.89,155.85,22.4564]
[1721140086000,6.5847,155.89,155.85,16.0402]
[1721140086201,6.4152,155.88,155.83,22.5815]
[1721140086425,6.5857,155.87,155.83,6.4172]
[1721140086622,6.5853,155.88,155.83,6.4172]
[1721140086834,0.17,155.87,155.84,1.28126842]
[1721140087102,6.7556,155.87,155.83,6.4172]
[1721140087310,0.34,155.87,155.84,6.4167]
[1721140087625,0.34,155.87,155.85,6.4163]
[1721140087929,0.34,155.88,155.85,6.4163]
[1721140088102,0.34,155.88,155.86,6.4159]
[1721140088304,6.4144,155.9,155.87,0.62551342]
[1721140088305,0.34,155.89,155.87,0.62551342]
[1721140088604,0.34,155.89,155.87,1.2829245]
[1721140089415,16.0303,155.96,155.87,7.6984245]
[1721140089622,45.0,155.95,155.87,7.6984245]
[1721140089940,6.4127,155.94,155.88,16.0373]
[1721140090246,6.4131,155.93,155.89,7.69713722]
[1721140090410,6.4131,155.93,155.9,1.2825784]
[1721140090609,6.4128,155.94,155.9,7.6968784]
[1721140090927,6.4128,155.94,155.9,1.2825784]
[1721140091126,6.4131,155.93,155.9,1.2825784]
[1721140091647,6.4128,155.94,155.9,7.6967784]
[1721140092033,6.4133,155.93,155.89,6.4146]
[1721140092534,32.3138,155.97,155.9,1.12149195]
[1721140092731,45.0,155.96,155.9,1.12149195]
[1721140092922,6.4138,155.92,155.9,1.12149195]
[1721140093117,6.4141,155.91,155.87,28.5829]
[1721140093952,6.7532,155.93,155.89,6.4147]
[1721140094170,6.7532,155.93,155.87,16.0384]
[1721140094444,0.34,155.93,155.87,22.4539]
[1721140095035,6.4138,155.92,155.87,22.4539]
[1721140095251,0.34,155.93,155.86,16.6359]
[1721140095457,6.4144,155.9,155.86,23.0519]
[1721140095777,6.5836,155.92,155.87,6.4155]
[1721140096055,0.17,155.91,155.87,6.4154]
[1721140096237,6.5839,155.91,155.88,0.34502666]
[1721140096643,0.17,155.91,155.88,0.34502666]
[1721140096847,0.17,155.91,155.88,1.11650032]
[1721140097431,6.5836,155.92,155.88,1.11650032]
[1721140097645,6.4132,155.93,155.88,22.4525]
[1721140098049,6.7536,155.92,155.88,22.4525]
[1721140098260,0.17,155.92,155.89,6.4147]
[1721140098453,6.5828,155.94,155.88,16.0375]
[1721140098750,0.17,155.93,155.88,16.0375]
[1721140098965,0.17,155.93,155.89,6.4145]
[1721140099132,6.5832,155.93,155.89,6.4145]
[1721140099330,0.17,155.93,155.88,16.0375]
[1721140099535,6.4127,155.95,155.9,23.72770753]
[1721140099745,6.4127,155.95,155.9,22.4495]
[1721140099944,6.4129,155.94,155.9,16.0355]
[1721140100360,0.34,155.93,155.87,16.0387]
[1721140100661,6.5839,155.92,155.88,6.4149]
[1721140100967,0.17,155.93,155.89,1.19545242]
[1721140100968,6.414,155.91,155.89,1.19545242]
[1721140101183,6.414,155.91,155.87,16.0387]
[1721140101334,0.34,155.9,155.84,16.0414]
[1721140101668,6.5851,155.89,155.85,1.25597801]
[1721140101834,0.17,155.88,155.82,15.7447]
[1721140102029,0.17,155.88,155.83,6.4171]
[1721140102631,6.4156,155.87,155.83,6.4171]
[1721140102836,16.0331,155.93,155.84,17.01283338]
[1721140103035,0.34,155.92,155.85,6.4163]
[1721140103245,45.34,155.92,155.86,6.4157]
[1721140103438,0.34,155.92,155.87,6.4155]
[1721140103664,6.414,155.91,155.87,6.4155]
[1721140103867,6.5843,155.9,155.88,0.97071752]
[1721140104063,16.0322,155.94,155.86,16.0397]
[1721140104362,16.2846,155.97,155.87,6.4154]
[1721140104363,6.4139,155.92,155.87,6.4154]
[1721140104541,16.2846,155.97,155.87,6.4154]
[1721140104958,6.4136,155.92,155.87,6.4154]
[1721140105161,6.4136,155.92,155.88,6.415]
[1721140105341,6.4132,155.93,155.89,6.4146]
[1721140105758,6.4128,155.94,155.89,6.4146]
[1721140106053,6.4131,155.93,155.89,6.4146]
[1721140106563,6.4135,155.92,155.88,16.0377]
[1721140106856,6.4142,155.91,155.87,6.4154]
[1721140107235,6.4144,155.9,155.85,16.0404]
[1721140107436,0.34,155.89,155.86,6.4159]
[1721140107645,16.0324,155.94,155.85,16.0404]
[1721140107945,6.7534,155.93,155.87,16.0383]
[1721140108148,6.4135,155.92,155.88,7.61249481]
[1721140108355,0.34,155.91,155.88,7.61249481]
[1721140108755,32.3137,155.97,155.89,6.4146]
[1721140108937,6.4134,155.93,155.9,1.19734118]
[1721140109138,32.3137,155.97,155.9,1.19734118]
[1721140109659,6.4127,155.94,155.9,7.61134118]
[1721140109854,32.3137,155.97,155.9,1.19734118]
[1721140110039,6.4135,155.92,155.9,1.19734118]
[1721140110455,6.4131,155.94,155.9,7.61154118]
[1721140111233,6.4132,155.93,155.89,22.4512]
[1721140111469,6.4132,155.93,155.9,0.70252859]
[1721140112861,6.4132,155.93,155.91,1.28255946]
[1721140113160,16.3711,155.95,155.9,1.28236131]
[1721140113340,16.2011,155.95,155.9,1.28236131]
[1721140113542,0.17,155.94,155.9,1.28236131]
[1721140113860,0.17,155.95,155.9,1.28236131]
[1721140114156,42.0475,156.02,155.94,16.0314]
[1721140114157,15.7855,156.01,155.94,16.0314]
[1721140114360,6.4111,155.98,155.95,1.28217927]
[1721140114563,6.4111,155.98,155.96,1.28219514]
[1721140114963,6.4114,155.97,155.96,1.28219514]
[1721140115159,6.4112,155.98,155.96,1.28219514]
[1721140115663,6.4112,155.98,155.94,16.0314]
[1721140115664,6.4112,155.98,155.97,1.28218604]
[1721140115867,6.4112,155.98,155.95,1.2821516]
[1721140116047,6.4112,155.98,155.96,1.28215538]
[1721140116245,6.4114,155.97,155.93,6.4129]
[1721140116566,6.4103,156.0,155.95,6.4122]
[1721140116766,0.34,155.99,155.96,1.28025236]
[1721140117646,6.4107,155.99,155.96,1.28025236]
[1721140117846,16.2552,156.05,155.96,16.41595236]
[1721140118051,16.0177,156.08,155.99,6.4103]
[1721140118285,6.4085,156.05,156.0,7.69002409]
[1721140118472,6.4086,156.04,156.0,1.27992409]
[1721140118847,6.4086,156.04,156.0,7.69002409]
[1721140119042,16.0177,156.08,156.0,7.69002409]
[1721140119043,6.4083,156.05,156.0,7.69002409]
[1721140119245,16.0147,156.11,156.02,6.4094]
[1721140119460,16.0147,156.11,156.03,1.2808812]
[1721140120370,22.6428,156.07,156.0,1.28147203]
[1721140120544,6.4104,156.0,155.95,6.4122]
[1721140120949,6.4099,156.01,155.96,6.4117]
[1721140121171,6.4099,156.01,155.97,1.28197134]
[1721140121671,6.7502,156.0,155.97,1.28197134]
[1721140121871,0.17,156.0,155.94,16.0312]
[1721140122047,6.4109,155.99,155.94,22.4435]
[1721140122670,6.4109,155.99,155.95,6.4122]
[1721140123169,6.5803,156.0,155.95,6.4122]
[1721140123377,6.5803,156.0,155.96,22.441]
[1721140123378,0.17,156.0,155.96,22.441]
[1721140123550,0.34,156.0,155.97,6.4113]
[1721140123745,0.17,156.01,155.96,16.0292]
[1721140123950,6.4082,156.05,156.01,6.4098]
[1721140124369,6.4078,156.06,156.02,6.4091]
[1721140124673,6.4078,156.06,156.0,16.0249]
[1721140124674,6.4078,156.06,156.01,6.4097]
[1721140124892,6.4068,156.09,156.02,16.0228]
[1721140125170,15.5947,156.14,156.02,19.27]
[1721140125369,6.4053,156.12,156.07,6.4072]
[1721140125572,6.4058,156.11,156.08,0.7630463]
[1721140125761,6.4049,156.13,156.08,6.4065]
[1721140126072,6.4049,156.13,156.09,6.4065]
[1721140126254,6.4049,156.13,156.08,6.4069]
[1721140127355,6.4053,156.12,156.08,6.4069]
[1721140127978,6.7449,156.14,156.08,22.882]
[1721140128277,6.4054,156.12,156.08,16.4751]
[1721140128668,16.0085,156.17,156.08,22.8819]
[1721140128669,6.405,156.13,156.08,22.8819]
[1721140129046,6.4045,156.14,156.09,6.4064]
[1721140129264,6.4041,156.15,156.11,6.4072]
[1721140129473,6.4037,156.16,156.12,6.4053]
[1721140129650,6.4037,156.16,156.11,12.8128]
[1721140129855,6.4037,156.16,156.12,6.4053]
[1721140130276,6.4037,156.16,156.13,1.00678293]
[1721140130475,6.4037,156.16,156.11,12.8128]
[1721140130863,6.4046,156.14,156.11,6.4072]
[1721140131076,6.4041,156.15,156.1,16.0145]
[1721140131482,6.4041,156.15,156.1,22.4206]
[1721140131676,0.34,156.16,156.1,6.406]
[1721140131863,6.5744,156.15,156.1,6.406]
[1721140132063,0.17,156.14,156.09,16.0154]
[1721140132374,6.405,156.13,156.09,22.4219]
[1721140132577,6.405,156.13,156.09,16.0154]
[1721140132958,6.4053,156.12,156.08,22.8819]
[1721140133178,0.17,156.12,156.08,16.4751]
[1721140133364,0.34,156.12,156.09,6.4064]
[1721140133559,6.7454,156.12,156.08,38.8987]
[1721140133758,0.34,156.12,156.09,6.4064]
[1721140134059,16.0067,156.19,156.1,6.4058]
[1721140134256,16.0089,156.17,156.07,12.7311]
[1721140134485,6.4046,156.14,156.09,6.4062]
[1721140134666,0.34,156.13,156.09,6.4062]
[1721140134867,0.34,156.13,156.1,6.4057]
[1721140135061,6.4038,156.16,156.11,6.79424477]
[1721140135261,6.7441,156.15,156.11,6.79424477]
[1721140135570,0.34,156.15,156.12,6.4053]
[1721140135773,6.7442,156.15,156.11,6.4057]
[1721140136482,0.34,156.15,156.09,16.0155]
[1721140136655,6.4045,156.14,156.1,6.406]
[1721140136852,6.7441,156.15,156.1,6.406]
[1721140137072,6.4045,156.14,156.09,22.4219]
[1721140137271,6.4045,156.14,156.1,6.406]
[1721140138175,0.34,156.15,156.07,6.3239]
[1721140138368,0.34,156.15,156.12,6.4049]
[1721140138580,0.34,156.15,156.12,7.68574228]
[1721140138962,6.7441,156.15,156.11,22.4193]
[1721140139169,6.7441,156.15,156.11,16.0137]
[1721140139170,6.4046,156.14,156.11,16.0137]
[1721140139465,6.4046,156.14,156.09,6.4064]
[1721140139673,6.4053,156.12,156.08,22.4236]
[1721140139868,0.34,156.15,156.09,6.4064]
[1721140139869,0.17,156.11,156.09,6.4064]
[1721140140181,0.17,156.12,156.06,6.4077]
[1721140140487,6.4062,156.1,156.05,16.0199]
[1721140140656,6.4062,156.1,156.05,22.428]
[1721140140855,0.34,156.09,156.05,16.0199]
[1721140141067,0.17,156.08,156.05,16.0199]
[1721140141268,0.17,156.09,156.04,15.4023]
[1721140141573,6.4071,156.08,156.04,15.4023]
[1721140141773,0.17,156.07,156.05,6.4081]
[1721140141964,0.34,156.09,156.07,6.4072]
[1721140142161,6.4058,156.11,156.07,6.4072]
[1721140142373,0.17,156.1,156.06,22.4266]
[1721140142579,0.34,156.1,156.06,22.4266]
[1721140142766,16.0097,156.16,156.08,6.4069]
[1721140142965,65.34,156.15,156.08,6.4068]
[1721140143180,6.406,156.11,156.06,16.0189]
[1721140143483,6.406,156.11,156.07,1.28121279]
[1721140143682,6.4061,156.1,156.06,22.4263]
[1721140143886,6.4061,156.1,156.06,16.0189]
[1721140144088,0.17,156.12,156.04,15.4023]
[1721140144385,0.17,156.12,156.05,16.0201]
[1721140144562,20.0,156.15,156.04,34.6723]
[1721140144759,6.7445,156.14,156.07,16.0176]
[1721140144968,6.4045,156.14,156.1,6.4061]
[1721140145389,6.4045,156.14,156.09,22.4224]
[1721140145687,6.4052,156.13,156.09,16.016]
[1721140146367,16.0057,156.2,156.09,16.016]
[1721140146568,20.0,156.19,156.09,16.016]
[1721140146893,21.3148,156.21,156.12,16.0131]
[1721140147074,6.4033,156.17,156.12,22.4183]
[1721140147385,6.4034,156.17,156.13,6.4046]
[1721140147564,6.4034,156.17,156.12,22.4183]
[1721140148102,37.3193,156.21,156.11,22.4233]
[1721140148383,6.4037,156.16,156.11,22.4233]
[1721140148766,6.4032,156.17,156.13,6.4047]
[1721140149070,6.4037,156.16,156.12,6.4052]
[1721140149267,6.4033,156.17,156.12,6.4052]
[1721140149473,0.34,156.18,156.1,6.2877]
[1721140149684,0.17,156.16,156.08,16.0168]
[1721140149859,6.4049,156.13,156.08,22.4234]
[1721140150058,6.4046,156.14,156.08,16.0168]
[1721140150264,6.4051,156.13,156.08,22.4236]
[1721140150475,16.1809,156.15,156.07,15.325]
[1721140150664,6.4058,156.11,156.06,12.794]
[1721140151490,6.4053,156.13,156.08,6.4066]
[1721140151673,0.17,156.12,156.08,6.4066]
[1721140151983,0.17,156.12,156.07,16.0177]
[1721140152366,0.17,156.12,156.05,6.4081]
[1721140152672,6.4067,156.09,156.05,6.4081]
[1721140152877,6.4062,156.1,156.05,6.4081]
[1721140153389,6.4066,156.09,156.05,6.4081]
[1721140153575,0.17,156.11,156.04,16.0209]
[1721140153777,45.17,156.11,156.04,16.0209]
[1721140153981,6.5764,156.1,156.06,6.4076]
[1721140154191,0.17,156.11,156.06,16.019]
[1721140154392,0.17,156.12,156.06,16.019]
[1721140154687,6.4057,156.12,156.07,6.4073]
[1721140154893,0.17,156.11,156.07,6.4073]
[1721140155085,0.17,156.11,156.06,22.4267]
[1721140155287,6.4064,156.1,156.07,0.88464643]
[1721140155482,0.17,156.12,156.06,16.019]
[1721140155687,6.4064,156.1,156.06,16.019]
[1721140156387,6.4069,156.09,156.03,31.347]
[1721140156566,6.4075,156.07,156.03,31.347]
[1721140156895,6.4075,156.07,156.03,37.7559]
[1721140157193,6.4075,156.07,155.92,32.0659]
[1721140157194,0.17,156.1,156.01,6.4095]
[1721140157373,6.4083,156.05,156.01,6.4095]
[1721140157574,6.4083,156.05,156.0,16.0249]
[1721140158197,6.4083,156.05,156.0,22.4348]
[1721140158588,6.4083,156.05,156.0,22.435]
[1721140158886,6.4083,156.05,156.01,6.4097]
[1721140159070,6.4078,156.06,156.01,6.4097]
[1721140159271,6.4084,156.05,156.01,6.4097]
[1721140159773,0.34,156.07,156.03,6.4089]
[1721140159976,6.7475,156.07,156.03,6.409]
[1721140160272,6.4079,156.06,156.02,22.4324]
[1721140160479,0.34,156.07,156.02,22.4324]
[1721140160786,6.7474,156.07,156.02,22.4324]